fUST/lending_fUST_20260606
["ID","MTS","AMOUNT","RATE_DAILY","PERIOD"]
[424238949,1780684066000,-396.3774974,0.00014648,2]
[424238999,1780684232000,-493.89471869,0.00015499,2]
[424238987,1780684232000,-5000.0,0.00015245,2]
[424238995,1780684232000,-480.44072708,0.00015499,2]
[424238989,1780684232000,-300.0,0.00015399,2]
[424238993,1780684232000,-165.84781383,0.0001549,2]
[424238997,1780684232000,-500.0,0.00015499,2]
[424238991,1780684232000,-12297.01544465,0.000154,2]
[424239003,1780684232000,-500.0,0.00015499,2]
[424239015,1780684232000,-292.10987587,0.000155,2]
[424239001,1780684232000,-500.0,0.00015499,2]
[424239005,1780684232000,-500.0,0.00015499,2]
[424239010,1780684232000,-642.57428669,0.00015499,2]
[424239012,1780684232000,-74.3374707,0.000155,2]
[424239008,1780684232000,-500.0,0.00015499,2]
[424239082,1780684238000,-1582.11647334,0.000155,2]
[424239155,1780684241000,-38678.47018479,0.000155,2]
[424239153,1780684241000,-18539.9466972,0.000155,2]
[424239395,1780684244000,-29619.94975576,0.000155,2]
[424239394,1780684244000,-4422.73026449,0.000155,2]
[424239393,1780684244000,-2172.14878066,0.00015345,2]
[424239412,1780684246000,-8037.24941359,0.000155,2]
[424239411,1780684246000,-6298.0958374,0.000155,2]
[424239413,1780684432000,-162.13167253,0.00013811,2]
[424239414,1780684485000,-759.16927808,0.00015187,2]
[424239415,1780684538000,-82313.65402401,0.000153,2]
[424239416,1780684592000,-683.75,0.0001539,3]
[424239417,1780684645000,-349.17492074,0.00015399,2]
[424239420,1780684699000,-176.67591824,0.00015233,7]
[424239421,1780684752000,-497.89953441,0.00015146,2]
[424239423,1780684805000,-500.0,0.00015299,2]
[424239424,1780684858000,-638.59097604,0.00015299,2]
[424239425,1780684874000,171.11611588,0.0002333,120]
[424239426,1780684912000,-5000.0,0.000152,2]
[424239427,1780685228000,-185.29334004,0.00014547,2]
[424239428,1780685241000,-850.14288146,0.000151,2]
[424239429,1780685281000,-1200.0,0.000151,2]
[424239430,1780685294000,-27569.8068743,0.000151,2]
[424239437,1780685433000,-299.65,0.000151,2]
[424239508,1780685438000,-698.69059994,0.000151,2]
[424239519,1780685438000,-5000.0,0.000151,2]
[424239517,1780685438000,-664.77329116,0.000151,2]
[424239521,1780685438000,-314.12670884,0.000151,2]
[424239523,1780685438000,-670.73953441,0.000151,2]
[424239510,1780685438000,-463.94110889,0.000151,2]
[424239663,1780685440000,-304.0,0.000151,2]
[424239660,1780685440000,-211.00026286,0.000151,2]
[424239631,1780685440000,-311.991456,0.000151,2]
[424239711,1780685970000,-506.32,0.00013255,2]
[424239712,1780685983000,-506.32,0.00013255,2]
[424239714,1780686111000,-506.32,0.00012329,2]
[424239715,1780686128000,-210.11824182,0.0001295,2]
[424239716,1780686145000,-378.21283528,0.0001295,2]
[424239717,1780686162000,-672.37837383,0.0001295,2]
[424239742,1780686179000,-5000.0,0.00013255,2]
[424239754,1780686352000,-573.59138425,0.0001381,2]
[424239753,1780686352000,-455.82,0.00012329,2]
[424239755,1780686359000,-357.26982633,0.0001381,2]
[424239765,1780686415000,-450.0,0.0001381,2]
[424240090,1780686565000,-718.38120904,0.0001381,2]
[424240091,1780686568000,-331.82477159,0.0001381,2]
[424240289,1780686632000,-3402.83094173,0.00013672,2]
[424240498,1780686641000,-274.19956787,0.0001481,2]
[424240491,1780686641000,-1154.92130679,0.00013672,2]
[424240494,1780686641000,-249.3974,0.00014324,2]
[424240507,1780686641000,-500.0,0.00014899,2]
[424240496,1780686641000,-229.15,0.00014683,2]
[424240509,1780686641000,-500.0,0.00014899,2]
[424240513,1780686641000,-22292.71942008,0.000149,2]
[424240505,1780686641000,-297.01368323,0.00014899,2]
[424240500,1780686641000,-165.84781383,0.00014898,2]
[424240549,1780686641000,-514.65927069,0.000149,2]
[424240586,1780686641000,-2379.72,0.000149,2]
[424240518,1780686641000,-299493.68,0.000149,2]
[424240511,1780686641000,-305.61220332,0.00014899,2]
[424240503,1780686641000,-500.0,0.00014899,2]
[424240502,1780686641000,-300.0,0.00014898,2]
[424240516,1780686641000,-19201.26160316,0.000149,2]
[424240731,1780686646000,-7610.50000225,0.000149,2]
[424240730,1780686646000,-1560.87636491,0.000149,2]
[424240753,1780687538000,-605.44407864,0.00014262,2]
[424240757,1780687646000,-165.84781385,0.000146,2]
[424240759,1780687646000,-460.96818549,0.00014699,2]
[424240760,1780687646000,-121.46479293,0.00014699,2]
[424240758,1780687646000,-300.0,0.00014698,2]
[424240755,1780687646000,-172.342,0.00014406,2]
[424240754,1780687646000,-2493.9871562,0.00014119,2]
[424240756,1780687646000,-223.27819594,0.000146,2]
[424240817,1780687832000,-177.96982325,0.00014599,2]
[424240827,1780687832000,-3928.95509376,0.000146,2]
[424240825,1780687832000,-500.0,0.00014599,2]
[424240812,1780687832000,-500.0,0.00014599,2]
[424240821,1780687832000,-500.0,0.00014599,2]
[424240819,1780687832000,-500.0,0.00014599,2]
[424240830,1780687832000,-4815.12819504,0.000146,2]
[424240815,1780687832000,-500.0,0.00014599,2]
[424240823,1780687832000,-500.0,0.00014599,2]
[424240828,1780687832000,-15532.8175253,0.000146,2]
[424241020,1780687838000,-446.888,0.0001572,2]
[424241019,1780687838000,-202.593,0.0001572,2]
[424241017,1780687838000,-2207.0,0.0001572,2]
[424241007,1780687838000,-199.56906464,0.00015399,2]
[424241018,1780687838000,-743.0,0.0001572,2]
[424241016,1780687838000,-3631.0,0.0001572,2]
[424241008,1780687838000,-362.33359016,0.00015499,2]
[424241000,1780687838000,-151.0,0.00014867,2]
[424240999,1780687838000,-301.1113443,0.00014867,2]
[424240998,1780687838000,-55717.7343809,0.00014867,2]
[424241006,1780687838000,-152.0,0.00015233,7]
[424241004,1780687838000,-500.0,0.00015079,2]
[424241001,1780687838000,-235.4880464,0.00014867,2]
[424241002,1780687838000,-152.0,0.00014978,2]
[424241005,1780687838000,-600.0,0.00015163,2]
[424240994,1780687838000,-500.0,0.00014599,2]
[424241003,1780687838000,-179.897804,0.00015068,2]
[424240995,1780687838000,-289.29796355,0.00014599,2]
[424240993,1780687838000,-500.0,0.00014599,2]
[424240997,1780687838000,-117044.41125753,0.000146,2]
[424240996,1780687838000,-595074.73982554,0.000146,2]
[424241012,1780687838000,-317.35925064,0.00015499,2]
[424241009,1780687838000,-333.19448405,0.00015499,2]
[424241035,1780687838000,-2774.0226509,0.00015933,2]
[424241036,1780687838000,-274570.06396489,0.00016,2]
[424241029,1780687838000,-302.47922684,0.00015923,2]
[424241028,1780687838000,-151.5,0.00015923,2]
[424241026,1780687838000,-265.211182,0.00015908,2]
[424241030,1780687838000,-151.5,0.00015923,2]
[424241033,1780687838000,-225.46230678,0.00015923,2]
[424241034,1780687838000,-168.57022042,0.00015923,2]
[424241027,1780687838000,-151.5,0.00015923,2]
[424241031,1780687838000,-151.5,0.00015923,2]
[424241022,1780687838000,-795.0,0.000158,2]
[424241025,1780687838000,-4191.18051267,0.000159,2]
[424241021,1780687838000,-12432.3069955,0.00015739,2]
[424241023,1780687838000,-4656.69066364,0.00015887,30]
[424241024,1780687838000,-1637.163064,0.000159,2]
[424241015,1780687838000,-191.93969751,0.00015699,2]
[424241011,1780687838000,-334.54400093,0.00015499,2]
[424241010,1780687838000,-186.04382211,0.00015499,2]
[424241013,1780687838000,-367.81746009,0.00015499,2]
[424241032,1780687838000,-151.5,0.00015923,2]
[424241014,1780687838000,-662.07142816,0.00015579,2]
[424241061,1780687843000,-4122.6608405,0.00016,2]
[424241059,1780687843000,-64.660841,0.00014931,2]
[424241060,1780687843000,-87.339159,0.00014931,2]
[424241063,1780687843000,-17863.8,0.00016,2]
[424241062,1780687843000,-721.901956,0.00016,2]
[424241095,1780688829000,-1158.91740776,0.00014301,2]
[424241210,1780689032000,-500.0,0.00015799,2]
[424241172,1780689032000,-185.0,0.0001572,2]
[424241140,1780689032000,-152.0,0.0001523,7]
[424241204,1780689032000,-500.0,0.00015799,2]
[424241193,1780689032000,-500.0,0.00015799,2]
[424241156,1780689032000,-299.0,0.00015719,2]
[424241206,1780689032000,-500.0,0.00015799,2]
[424241189,1780689032000,-1839.08730046,0.00015797,2]
[424241181,1780689032000,-430.07913681,0.00015797,2]
[424241197,1780689032000,-500.0,0.00015799,2]
[424241164,1780689032000,-276.36,0.0001572,2]
[424241223,1780689032000,-1078.08916142,0.000158,2]
[424241201,1780689032000,-502.50857448,0.00015799,2]
[424241184,1780689032000,-323.93878921,0.00015797,2]
[424241199,1780689032000,-500.0,0.00015799,2]
[424241159,1780689032000,-1985.61814401,0.0001572,2]
[424241174,1780689032000,-444.0,0.0001572,2]
[424241150,1780689032000,-237.46693298,0.00015463,2]
[424241178,1780689032000,-171.07224963,0.00015797,2]
[424241170,1780689032000,-371.69963362,0.0001572,2]
[424241136,1780689032000,-225.8335082,0.00015031,2]
[424241146,1780689032000,-152.0,0.00015235,7]
[424241220,1780689032000,-9066.40325424,0.000158,2]
[424241154,1780689032000,-152.0,0.00015715,2]
[424241144,1780689032000,-152.0,0.00015235,7]
[424241218,1780689032000,-423.28848638,0.00015799,2]
[424241142,1780689032000,-1616.82558494,0.00015233,7]
[424241152,1780689032000,-165.84781384,0.000157,2]
[424241191,1780689032000,-500.0,0.00015799,2]
[424241187,1780689032000,-1177.01587229,0.00015797,2]
[424241216,1780689032000,-543.11802766,0.00015799,2]
[424241195,1780689032000,-500.0,0.00015799,2]
[424241203,1780689032000,-500.0,0.00015799,2]
[424241209,1780689032000,-500.0,0.00015799,2]
[424241212,1780689032000,-500.0,0.00015799,2]
[424241214,1780689032000,-502.66701431,0.00015799,2]
[424241225,1780689032000,-38991.09787025,0.000158,2]
[424241148,1780689032000,-152.0,0.00015239,7]
[424241158,1780689032000,-1414.0,0.0001572,2]
[424241162,1780689032000,-997.32222237,0.0001572,2]
[424241176,1780689032000,-150.386,0.0001572,2]
[424241134,1780689032000,-3841.08259224,0.00014158,2]
[424241139,1780689032000,-152.0,0.0001523,7]
[424241335,1780689041000,-64368.0107295,0.000158,2]
[424241334,1780689041000,-152.0,0.00015719,2]
[424241333,1780689041000,-46997.35563432,0.000158,2]
[424241330,1780689041000,-5077.43394479,0.000158,2]
[424241328,1780689041000,-195281.16165522,0.000158,2]
[424241357,1780689043000,-152.0,0.00015231,7]
[424241358,1780689043000,-100.53130019,0.000158,2]
[424241356,1780689043000,-152.0,0.00015231,7]
[424241364,1780689047000,-1625.01557051,0.000158,2]
[424241376,1780689372000,276.0,8.001e-05,2]
[424241382,1780689941000,-16.54356737,0.0001417,2]
[424241381,1780689941000,-340.72625896,0.00014028,2]
[424241384,1780689952000,-987.01465369,0.0001417,2]
[424241449,1780690232000,-913.15665736,0.00013888,2]
[424241441,1780690232000,-1114.51852297,0.00013888,2]
[424241550,1780690241000,-2176.02426615,0.00013888,2]
[424241551,1780690241000,-796.30055352,0.00013888,2]
[424241553,1780690241000,-4952.0074066,0.00014555,2]
[424241554,1780690241000,-3043.158018,0.00014746,2]
[424241557,1780690241000,-300.0,0.00015039,2]
[424241556,1780690241000,-2645.63742695,0.0001501,2]
[424241555,1780690241000,-210.36724978,0.0001501,2]
[424241558,1780690241000,-1000.0,0.00015172,5]
[424241562,1780690241000,-7116.7596813,0.000156,2]
[424241563,1780690241000,-731.75066224,0.0001562,2]
[424241561,1780690241000,-444.0,0.00015537,2]
[424241566,1780690241000,-455.82,0.0001569,3]
[424241564,1780690241000,-490.01358209,0.0001565,2]
[424241571,1780690241000,-150.0,0.0001572,2]
[424241568,1780690241000,-150.138,0.0001572,2]
[424241569,1780690241000,-150.0,0.0001572,2]
[424241560,1780690241000,-185.0,0.00015537,2]
[424241559,1780690241000,-152.0,0.00015236,7]
[424241576,1780690242000,-466.62068411,0.000158,2]
[424241573,1780690242000,-3631.0,0.0001572,2]
[424241572,1780690242000,-2207.0,0.0001572,2]
[424241575,1780690242000,-795.0,0.000158,2]
[424241577,1780690242000,-606.84771442,0.00015819,2]
[424241574,1780690242000,-259.2337134,0.000158,2]
[424241579,1780690242000,-152.0,0.00015906,30]
[424241580,1780690242000,-597.26374589,0.00015913,2]
[424241582,1780690242000,-500.0,0.00015999,2]
[424241583,1780690242000,-301.17345594,0.00015999,2]
[424241581,1780690242000,-9.58396853,0.00015913,2]
[424241578,1780690242000,-646.79400921,0.00015826,2]
[424241598,1780690244000,-18082.49827173,0.00016,2]
[424241597,1780690244000,-500.0,0.00015999,2]
[424241595,1780690244000,-500.0,0.00015999,2]
[424241593,1780690244000,-300.5825462,0.00015999,2]
[424241610,1780690246000,-11643.77063913,0.00016,2]
[424241641,1780691138000,-643.60113614,0.00014347,2]
[424241663,1780691244000,-3958.63336517,0.00014204,2]
[424241743,1780691432000,-471.2292015,0.00015399,2]
[424241733,1780691432000,-1000.0,0.00015174,5]
[424241730,1780691432000,-355.54681661,0.00014357,2]
[424241729,1780691432000,-5000.0,0.00014062,2]
[424241734,1780691432000,-203.28356911,0.00015204,2]
[424241736,1780691432000,-1123.69329809,0.00015236,7]
[424241739,1780691432000,-223.27819594,0.00015392,2]
[424241738,1780691432000,-661.0128062,0.00015392,2]
[424241735,1780691432000,-152.0,0.00015234,7]
[424241732,1780691432000,-897.48746631,0.00014492,2]
[424241741,1780691432000,-460.96818549,0.00015399,2]
[424241731,1780691432000,-738.85318339,0.00014492,2]
[424241748,1780691432000,-500.0,0.00015399,2]
[424241753,1780691432000,-4000.03852159,0.000154,2]
[424241744,1780691432000,-500.0,0.00015399,2]
[424241749,1780691432000,-500.0,0.00015399,2]
[424241751,1780691432000,-103.14774427,0.00015399,2]
[424241750,1780691432000,-604.75946357,0.00015399,2]
[424241752,1780691432000,-336.50431871,0.00015399,2]
[424241747,1780691432000,-500.0,0.00015399,2]
[424241740,1780691432000,-300.0,0.00015398,2]
[424241742,1780691432000,-500.0,0.00015399,2]
[424241745,1780691432000,-267.06361856,0.00015399,2]
[424241746,1780691432000,-500.0,0.00015399,2]
[424241775,1780691441000,-162.38071901,0.00015491,2]
[424241773,1780691441000,-288753.60858071,0.000154,2]
[424241774,1780691441000,-151.0,0.00015491,2]
[424241780,1780691441000,-461.81539849,0.0001572,2]
[424241776,1780691441000,-500.0,0.00015491,2]
[424241777,1780691441000,-500.0,0.00015599,2]
[424241779,1780691441000,-442.18460151,0.00015599,2]
[424241778,1780691441000,-57.81539849,0.00015599,2]
[424241782,1780691441000,-444.0,0.0001572,2]
[424241784,1780691441000,-398.0,0.000159,2]
[424241785,1780691441000,-600.0,0.00015911,2]
[424241783,1780691441000,-185.0,0.0001572,2]
[424241786,1780691441000,-829.54788287,0.00015913,2]
[424241790,1780691441000,-5117.81167427,0.00016,2]
[424241787,1780691441000,-1296.16856698,0.00015913,2]
[424241788,1780691441000,-3772.06246143,0.00015936,2]
[424241781,1780691441000,-1724.92460151,0.0001572,2]
[424241805,1780691443000,-1412.16981293,0.00016,2]
[424241830,1780691447000,-3845.11831326,0.00016,2]
[424241831,1780691447000,-22086.9194392,0.00016,2]
[424241829,1780691447000,-3530.87140674,0.00016,2]
[424241832,1780691530000,-152.0,0.00015234,7]
[424241834,1780691782000,488.71,0.00023316,30]
[424241838,1780692077000,-152.0,0.00016036,30]
[424241839,1780692077000,-708.63552556,0.00019279,30]
[424241846,1780692077000,-156.0,0.00023316,120]
[424241840,1780692077000,-187.0,0.00021657,30]
[424241842,1780692077000,-187.0,0.00022657,30]
[424241841,1780692077000,-402.88825543,0.00022263,30]
[424241843,1780692077000,-148069.82006246,0.0002329,120]
[424241844,1780692077000,-187.0,0.00023313,120]
[424241845,1780692077000,-151.0,0.00023316,120]
[424241854,1780692077000,-203.27449723,0.00023867,120]
[424241848,1780692077000,-170.0,0.00023316,120]
[424241849,1780692077000,-922.52633463,0.00023359,120]
[424241856,1780692077000,-320.04380225,0.00023867,120]
[424241855,1780692077000,-307.06925777,0.00023867,120]
[424241853,1780692077000,-187.0,0.00023657,30]
[424241857,1780692077000,-830.44374858,0.00023867,120]
[424241851,1780692077000,-300.0,0.000234,120]
[424241850,1780692077000,-731.50575003,0.00023364,120]
[424241847,1780692077000,-166.50593804,0.00023316,120]
[424241852,1780692077000,-402.88825543,0.00023435,30]
[424241868,1780692078000,-1042.53474453,0.00024658,120]
[424241872,1780692078000,-151.0,0.00025316,120]
[424241871,1780692078000,-187.0,0.00025313,120]
[424241875,1780692078000,-187.0,0.00025657,30]
[424241878,1780692078000,-44235.86161383,0.00026,30]
[424241869,1780692078000,-239862.30984968,0.000249,120]
[424241870,1780692078000,-300.0,0.00025,120]
[424241867,1780692078000,-187.0,0.00024657,30]
[424241862,1780692078000,-187.0,0.00024313,120]
[424241866,1780692078000,-402.88825543,0.00024607,30]
[424241863,1780692078000,-151.0,0.00024316,120]
[424241864,1780692078000,-156.0,0.00024316,120]
[424241876,1780692078000,-200.0,0.00025805,120]
[424241858,1780692078000,-318.55968363,0.00023867,120]
[424241860,1780692078000,-300.0,0.00024,120]
[424241861,1780692078000,-218.0,0.00024308,120]
[424241859,1780692078000,-415.70421042,0.00023867,120]
[424241865,1780692078000,-170.0,0.00024316,120]
[424241877,1780692078000,-300.0,0.00026,120]
[424241873,1780692078000,-156.0,0.00025316,120]
[424241880,1780692078000,-187.0,0.00026313,120]
[424241897,1780692078000,-200.0,0.000282,120]
[424241874,1780692078000,-170.0,0.00025316,120]
[424241896,1780692078000,-1000.0,0.00028,120]
[424241894,1780692078000,-791.0,0.00027645,30]
[424241895,1780692078000,-187.0,0.00027657,30]
[424241892,1780692078000,-200.0,0.000276,120]
[424241891,1780692078000,-289.41073,0.000276,120]
[424241890,1780692078000,-156.0,0.00027316,120]
[424241888,1780692078000,-187.0,0.00027313,120]
[424241893,1780692078000,-1000.0,0.00027645,30]
[424241885,1780692078000,-225.4147509,0.00026968,30]
[424241879,1780692078000,-169.98637764,0.00026006,120]
[424241889,1780692078000,-152.0,0.00027316,120]
[424241881,1780692078000,-151.0,0.00026316,120]
[424241883,1780692078000,-170.46981014,0.00026316,120]
[424241882,1780692078000,-156.0,0.00026316,120]
[424241884,1780692078000,-187.0,0.00026657,30]
[424241886,1780692078000,-200.0,0.00027,120]
[424241887,1780692078000,-200.0,0.00027,120]
[424241909,1780692079000,-348.68726447,0.0003,120]
[424241919,1780692079000,-200.0,0.0003,120]
[424241915,1780692079000,-1232.26207928,0.0003,120]
[424241913,1780692079000,-701.48397227,0.0003,120]
[424241914,1780692079000,-614.59560889,0.0003,120]
[424241911,1780692079000,-1202.30734477,0.0003,120]
[424241912,1780692079000,-1315.79116432,0.0003,120]
[424241910,1780692079000,-925.33385416,0.0003,120]
[424241920,1780692079000,-5007.65020299,0.0003,120]
[424241907,1780692079000,-1422.80514718,0.0003,120]
[424241899,1780692079000,-159.78093636,0.00028316,120]
[424241906,1780692079000,-449.64807906,0.0003,120]
[424241904,1780692079000,-179.72314228,0.0003,120]
[424241905,1780692079000,-1146.40665806,0.0003,120]
[424241903,1780692079000,-187.0,0.00029313,120]
[424241902,1780692079000,-155.0,0.000292,120]
[424241898,1780692079000,-187.0,0.00028313,120]
[424241900,1780692079000,-200.0,0.000288,120]
[424241901,1780692079000,-300.0,0.00029,120]
[424241916,1780692079000,-1227.14562441,0.0003,120]
[424241908,1780692079000,-409.67621245,0.0003,120]
[424241918,1780692079000,-162.97866469,0.0003,120]
[424241935,1780692079000,-925.33385416,0.000309,120]
[424241922,1780692079000,-1172.59530189,0.0003,120]
[424241942,1780692079000,-750.4913224,0.000309,120]
[424241917,1780692079000,-750.4913224,0.0003,120]
[424241940,1780692079000,-1232.26207928,0.000309,120]
[424241941,1780692079000,-1227.14562441,0.000309,120]
[424241938,1780692079000,-701.48397227,0.000309,120]
[424241939,1780692079000,-614.59560889,0.000309,120]
[424241936,1780692079000,-1202.30734477,0.000309,120]
[424241937,1780692079000,-1315.79116432,0.000309,120]
[424241932,1780692079000,-1422.80514718,0.000309,120]
[424241934,1780692079000,-348.68726447,0.000309,120]
[424241943,1780692079000,-162.97866469,0.000309,120]
[424241930,1780692079000,-1146.40665806,0.000309,120]
[424241933,1780692079000,-409.67621245,0.000309,120]
[424241925,1780692079000,-1000.0,0.0003,120]
[424241924,1780692079000,-738.35907921,0.0003,30]
[424241923,1780692079000,-768.06331103,0.0003,120]
[424241921,1780692079000,-1000.0,0.0003,120]
[424241926,1780692079000,-186.90332544,0.0003,120]
[424241928,1780692079000,-1000.0,0.0003041,30]
[424241929,1780692079000,-179.72314228,0.000309,120]
[424241931,1780692079000,-449.64807906,0.000309,120]
[424241927,1780692079000,-1000.0,0.0003041,30]
[424241954,1780692080000,-1422.80514718,0.000318,120]
[424241961,1780692080000,-614.59560889,0.000318,120]
[424241959,1780692080000,-1315.79116432,0.000318,120]
[424241956,1780692080000,-348.68726447,0.000318,120]
[424241958,1780692080000,-1202.30734477,0.000318,120]
[424241957,1780692080000,-925.33385416,0.000318,120]
[424241955,1780692080000,-409.67621245,0.000318,120]
[424241953,1780692080000,-449.64807906,0.000318,120]
[424241948,1780692080000,-911.49373238,0.00031,120]
[424241951,1780692080000,-179.72314228,0.000318,120]
[424241950,1780692080000,-500.0,0.000314,120]
[424241949,1780692080000,-200.0,0.00031142,120]
[424241946,1780692080000,-3086.32761552,0.00031,120]
[424241947,1780692080000,-768.06331103,0.00031,120]
[424241945,1780692080000,-186.90332544,0.000309,120]
[424241944,1780692080000,-1172.59530189,0.000309,120]
[424241962,1780692080000,-1232.26207928,0.000318,120]
[424241952,1780692080000,-1146.40665806,0.000318,120]
[424241963,1780692080000,-1227.14562441,0.000318,120]
[424241960,1780692080000,-701.48397227,0.000318,120]
[424241976,1780692080000,-449.64807906,0.000328,120]
[424241982,1780692080000,-1315.79116432,0.000328,120]
[424241981,1780692080000,-1202.30734477,0.000328,120]
[424241980,1780692080000,-925.33385416,0.000328,120]
[424241979,1780692080000,-348.68726447,0.000328,120]
[424241978,1780692080000,-409.67621245,0.000328,120]
[424241977,1780692080000,-1422.80514718,0.000328,120]
[424241975,1780692080000,-1146.40665806,0.000328,120]
[424241983,1780692080000,-701.48397227,0.000328,120]
[424241974,1780692080000,-179.72314228,0.000328,120]
[424241973,1780692080000,-300.0,0.000324,120]
[424241971,1780692080000,-738.35907921,0.00032,30]
[424241970,1780692080000,-151.0,0.00032,30]
[424241969,1780692080000,-216.03305799,0.00032,120]
[424241968,1780692080000,-1000.0,0.00032,120]
[424241966,1780692080000,-1172.59530189,0.000318,120]
[424241967,1780692080000,-186.90332544,0.000318,120]
[424241965,1780692080000,-162.97866469,0.000318,120]
[424241972,1780692080000,-2000.0,0.00032,120]
[424241964,1780692080000,-750.4913224,0.000318,120]
[424241986,1780692081000,-1227.14562441,0.000328,120]
[424241990,1780692081000,-186.90332544,0.000328,120]
[424241988,1780692081000,-1172.59530189,0.000328,120]
[424241984,1780692081000,-614.59560889,0.000328,120]
[424241987,1780692081000,-750.4913224,0.000328,120]
[424241993,1780692081000,-999.0,0.00032876,120]
[424241991,1780692081000,-89999.999999,0.0003287,120]
[424241989,1780692081000,-7588.98,0.000328,90]
[424241992,1780692081000,-1932.23816299,0.00032876,120]
[424241994,1780692081000,-216.91,0.00032877,120]
[424241985,1780692081000,-1232.26207928,0.000328,120]
[424241995,1780692087000,152.0,0.00016052,30]
[424241997,1780692200000,51047.36,0.00019178,120]
[424241996,1780692200000,94618.04009237,0.00019178,120]
[424242040,1780692432000,-1038.88900351,0.00014902,2]
[424242039,1780692432000,-400.0,0.000148,5]
[424242571,1780692638000,-316.48903078,0.00015845,2]
[424242564,1780692638000,-300.0,0.00015778,2]
[424242568,1780692638000,-185.0,0.0001578,2]
[424242563,1780692638000,-354.13222429,0.0001568,2]
[424242566,1780692638000,-300.0,0.00015778,2]
[424242561,1780692638000,-152.0,0.00015234,7]
[424242573,1780692638000,-450.51016954,0.00015845,2]
[424242562,1780692638000,-162.25719254,0.00015236,7]
[424242558,1780692638000,-156.0,0.00014802,2]
[424242557,1780692638000,-378.33031326,0.000143,2]
[424242556,1780692638000,-5000.0,0.00014157,2]
[424242567,1780692638000,-2207.0,0.0001578,2]
[424242560,1780692638000,-1864.61625372,0.00015052,2]
[424242559,1780692638000,-300.0,0.00015,5]
[424242576,1780692638000,-500.0,0.0001589,2]
[424242570,1780692638000,-250.28342752,0.00015845,2]
[424242581,1780692638000,-178.30660706,0.00015999,2]
[424242575,1780692638000,-151.0,0.0001589,2]
[424242574,1780692638000,-236.36394653,0.0001589,2]
[424242572,1780692638000,-348.13218327,0.00015845,2]
[424242584,1780692638000,-118244.98983801,0.00016,2]
[424242583,1780692638000,-656761.41335734,0.00016,2]
[424242577,1780692638000,-172.342,0.00015899,2]
[424242580,1780692638000,-529.86044105,0.00015999,2]
[424242579,1780692638000,-500.0,0.00015999,2]
[424242582,1780692638000,-159.96134033,0.00015999,2]
[424242578,1780692638000,-4189.43021657,0.000159,2]
[424242569,1780692638000,-444.0,0.0001578,2]
[424242621,1780692642000,-5000.0,0.00014015,2]
[424242622,1780692642000,-7245.63489599,0.00016,2]
[424242651,1780692646000,-12146.49035461,0.00016,2]
[424242653,1780692968000,166.66666667,0.00023361,120]
[424242652,1780692968000,166.66666667,0.00023361,120]
[424242654,1780693548000,-357.26982633,0.00013761,2]
[424242655,1780693558000,-952.67330194,0.00013761,2]
[424242656,1780693653000,7500.0,0.00023288,120]
[424242658,1780693770000,-3109.99493092,0.00013352,2]
[424242705,1780693832000,-2500.09975333,0.00012955,2]
[424242766,1780693843000,-397.46748695,0.00015199,2]
[424242765,1780693843000,-166.0,0.00014782,2]
[424242773,1780693843000,-229.99,0.00015569,2]
[424242769,1780693843000,-2426.6635634,0.00015237,2]
[424242767,1780693843000,-1157.12387862,0.00015236,7]
[424242768,1780693843000,-168.17471929,0.00015236,7]
[424242779,1780693843000,-264.99441175,0.00015799,2]
[424242777,1780693843000,-500.0,0.00015798,2]
[424242776,1780693843000,-500.0,0.00015798,2]
[424242778,1780693843000,-500.0,0.00015798,2]